Cogmind - Beta 14 @@@ ROGUE MODE // 2025.04.28 @ 01:12:11 Player: jumpy Result: Destroyed by S-10 Pest with Light Assault Rifle Performance ------------- Evolutions (1) 500 Regions Visited (4) 800 Robots Destroyed (35) 175 Value Destroyed (919) 919 Prototype IDs (4) 80 Alien Tech Used (0) 0 Bonus (200) 200 TOTAL SCORE: 2674 Bonus ------- Entered Garrisons 200 Cogmind --------- Core Integrity 0/400 Matter 297/300 Energy 280/280 System Corruption 0% Temperature Cool (0) Movement Rolling (135) Ox3 Location -9/Garrison Parts ------- > --- POWER (1) -------- Heavy Ion Engine > --- PROPULSION (2) --- Armored Wheel Armored Wheel > --- UTILITY (4) ------ Huge Storage Unit > --- WEAPON (2) ------- Improved Medium Laser > --- INVENTORY (25) --- Light Ion Engine Light Treads Light Treads Light Treads Light Treads Improved Treads Improved Treads Improved Treads Improved Treads Improved Treads Improved Treads Compact Wheel Compact Wheel Armored Wheel Armored Wheel Seismic Detector Improved EM Shotgun Particle Gun Advanced Beam Cannon Improved Light Cannon Datajack Peak State ------------ > --- POWER ------------ Heavy Ion Engine > --- PROPULSION ------- Armored Wheel Armored Wheel > --- UTILITY ---------- Huge Storage Unit Seismic Detector > --- WEAPON ----------- Improved Medium Laser Improved Light Cannon > --- INVENTORY -------- Light Ion Engine Light Treads Light Treads Light Treads Light Treads Improved Treads Improved Treads Improved Treads Improved Treads Improved Treads Improved Treads Compact Wheel Compact Wheel Armored Wheel Armored Wheel Seismic Detector Improved EM Shotgun Particle Gun Advanced Beam Cannon Improved Light Cannon Datajack [Rating: 17] Favorites ----------- Power Heavy Ion Engine Engine Heavy Ion Engine Propulsion Compact Wheel Treads Light Treads Wheel Compact Wheel Utility Seismic Detector Device Seismic Detector Storage Huge Storage Unit Protection Light Armor Plating Weapon Small Laser Energy Gun Small Laser Energy Cannon Advanced Beam Cannon Ballistic Gun Light Assault Rifle Ballistic Cannon Improved Light Cannon Build | -11 -10 -9 -9 -9 ------- Run | Yrd Mat Mat Sto Gar Slots Evolved 2 | . . 2 . . Power . | . . . . . Propulsion . | . . . . . Utility 2 | . . 2 . . Weapon . | . . . . . Parts Attached 38 | 7 6 15 7 3 Power 6 | 1 1 3 1 . Engine 6 | 1 1 3 1 . Core . | . . . . . Reactor . | . . . . . Propulsion 14 | 2 4 6 . 2 Treads 2 | 2 . . . . Leg . | . . . . . Wheel 12 | . 4 6 . 2 Hover . | . . . . . Flight . | . . . . . Utility 5 | 2 1 2 . . Device 1 | 1 . . . . Storage 2 | 1 1 . . . Processor . | . . . . . Hackware . | . . . . . Protection 2 | . . 2 . . Artifact . | . . . . . Weapon 13 | 2 . 4 6 1 Energy Gun 8 | 2 . 3 2 1 Energy Cannon 3 | . . . 3 . Ballistic Gun 1 | . . 1 . . Ballistic Cannon 1 | . . . 1 . Launcher . | . . . . . Special Weapon . | . . . . . Impact Weapon . | . . . . . Slashing Weapon . | . . . . . Piercing Weapon . | . . . . . Special Melee Weapon . | . . . . . Unidentified Prototypes 4 | . . . 4 . Parts Lost 13 | . 1 10 . 2 Power 2 | . 1 1 . . Propulsion 4 | . . 4 . . Utility 2 | . . 1 . 1 Weapon 5 | . . 4 . 1 Highest Loss Streak 5 | . 1 5 . 2 To Critical Strikes 1 | . . 1 . . Average Slot Usage (%) 81 | . 99 77 77 76 Engine 11 | . 13 10 11 11 Wheel 21 | . 23 19 22 22 Device 11 | . 14 11 11 10 Storage 11 | . 14 11 11 11 Protection 1 | . . 5 . . Energy Gun 12 | . 28 15 2 8 Energy Cannon 3 | . . . 9 2 Ballistic Gun 1 | . . 5 . . Ballistic Cannon 5 | . . . 9 11 Peak Build Rating 17 | 7 7 9 15 17 Average Rating 10 | 5 6 7 12 15 On Entrance 7 | . 7 7 9 14 Naked Turns . | . . . . . Heaviest Build 97 | 14 89 93 97 97 Greatest Support 40 | 40 40 32 32 32 Greatest Overweight (x) 30 | . 4 30 3 3 Average Overweight (x) 2 | . 2 2 2 2 Largest Inventory Capacity 25 | 8 25 25 25 25 Average Capacity 22 | 7 22 25 25 25 Most Carried 21 | 4 6 11 19 21 Average Carried 9 | 2 4 5 13 19 Final Capacity 25 | 8 25 25 25 25 Final Carried 21 | 4 5 11 17 21 Class Distribution -------------------- 75% | Mutant 24% | Scavenger-Mutant Dominant Class ---------------- Mutant | -10/Materials Scavenger-Mutant | -9/Materials Mutant | -9/Storage Mutant | -9/Garrison Resources | -11 -10 -9 -9 -9 ----------- Run | Yrd Mat Mat Sto Gar Matter Collected 854 | 261 69 148 108 268 Remotely . | . . . . . Salvage Created 1667 | 141 226 701 224 375 Parts 86 | 14 7 44 17 4 Haulers Intercepted 2 | . . 2 . . Recyclers Shooed . | . . . . . Parts Field Recycled . | . . . . . Retrieved Matter . | . . . . . Parts Self-Destructed . | . . . . . Prevented . | . . . . . Kills | -11 -10 -9 -9 -9 ------- Run | Yrd Mat Mat Sto Gar Combat Hostiles Destroyed 26 | . 4 15 6 1 Melee 1 | . . . . 1 Guns 19 | . 4 15 . . Cannons 5 | . . . 5 . Classes Destroyed 6 | 2 1 3 . . Tunneler 4 | 4 . . . . Hauler 2 | . . 2 . . Recycler 3 | 1 1 1 . . Swarmer 5 | . . 4 . 1 Grunt 18 | . 4 9 5 . Sentry 3 | . . 2 1 . Best Kill Streak 6 | 2 2 6 5 1 Combat Bots Only 6 | . 2 6 5 1 Max Kills in Single Turn 1 | 1 1 1 1 1 Gunslinging . | . . . . . Exploded . | . . . . . Melee 1 | . . . . 1 Uniques/NPCs Destroyed . | . . . . . Combat | -11 -10 -9 -9 -9 -------- Run | Yrd Mat Mat Sto Gar Hostile Shots Fired 207 | . 26 100 24 57 Missed 48 | . 8 21 6 13 Damage Taken 1812 | . 243 948 205 416 Core 476 | . 71 252 39 114 Absorbed by Shields . | . . . . . Core Remaining (%) 85 | 100 71 . . . Volleys Fired 176 | 13 28 56 19 60 Largest 2 | 2 2 2 2 2 Hottest 107 | 90 90 105 107 107 Shots Fired 337 | 26 52 103 38 118 Gun 239 | 26 52 103 13 45 Cannon 98 | . . . 25 73 Launcher . | . . . . . Special . | . . . . . Kinetic 104 | . . 33 13 58 Thermal 233 | 26 52 70 25 60 Explosive . | . . . . . Electromagnetic . | . . . . . Robot Hit Streak 29 | 10 10 29 4 27 Robot Miss Streak 5 | 2 5 3 3 3 Penetration Max . | . . . . . Secondary Targets . | . . . . . Shots Hit Robots 245 | 17 35 79 11 103 Core Hits 94 | 6 12 34 5 37 Critical Kills 1 | . . . 1 . Critical Parts Destroyed 1 | . . 1 . . Critical Strikes 13 | 3 . 1 1 8 Burn 8 | 3 . . . 5 Meltdown 1 | . . . 1 . Destroy 1 | . . 1 . . Blast 3 | . . . . 3 Melee Attacks . | . . . . . Impact . | . . . . . Slashing . | . . . . . Piercing . | . . . . . Sneak Attacks . | . . . . . Combat Hostiles . | . . . . . Follow-up Attacks . | . . . . . Damage Inflicted 3273 | 200 404 851 229 1589 Guns 2166 | 200 404 851 . 711 Cannons 1065 | . . . 229 836 Explosions . | . . . . . Melee . | . . . . . Ramming 42 | . . . . 42 Kinetic 810 | . . 215 65 530 Thermal 2421 | 200 404 636 164 1017 Explosive . | . . . . . Electromagnetic . | . . . . . Impact . | . . . . . Slashing . | . . . . . Piercing . | . . . . . Highest Corruption . | . . . . . Average Corruption . | . . . . . Corruption Purged . | . . . . . Corruption Blocked . | . . . . . Overload Shots . | . . . . . Overflow Damage 4 | . . . . 4 Projectiles 4 | . . . . 4 Explosions . | . . . . . Melee . | . . . . . Knockbacks 3 | . . . . 3 Impact . | . . . . . Kinetic 2 | . . . . 2 Secondary 1 | . . . . 1 Self-Inflicted Damage 21 | . . . . 21 Shots . | . . . . . Rammed 1 | . . . . 1 Targets Rammed 1 | . . . . 1 Kicked . | . . . . . Crushed . | . . . . . Highest Temperature 302 | 120 255 266 146 302 Average Temperature 93 | 43 110 79 72 113 Received Heat Transfer 696 | . 135 399 144 18 Effects 1 | . 1 . . . Interference 1 | . 1 . . . Siege Activations . | . . . . . Robots Corrupted . | . . . . . Combat Hostiles . | . . . . . Parts Fried . | . . . . . Impact Corruptions . | . . . . . Robots Melted 1 | . . . 1 . Combat Hostiles 1 | . . . 1 . Parts Melted 13 | 2 4 5 2 . Heat Transferred 6103 | 755 1079 1531 296 2442 Parts Sabotaged . | . . . . . Parts Stolen . | . . . . . Parts Stripped . | . . . . . Power Chain Reactions . | . . . . . Alert | -11 -10 -9 -9 -9 ------- Run | Yrd Mat Mat Sto Gar Peak Influence 384 | 25 171 384 206 188 Initial 133 | . 16 72 107 133 Average 140 | 9 96 258 100 150 Maximum Alert Level 1 | . . 1 1 . Low Security (%) 79 | 100 100 19 98 100 Level 1 20 | . . 80 1 . Level 2 . | . . . . . Level 3 . | . . . . . Level 4 . | . . . . . Level 5 . | . . . . . High Security . | . . . . . Max Security . | . . . . . Squads Dispatched 5 | . 1 1 3 . Investigation 1 | . . . 1 . Extermination . | . . . . . Reinforcement 3 | . 1 1 1 . Assault . | . . . . . Garrison 1 | . . . 1 . Intercept . | . . . . . Searches Triggered . | . . . . . Construction Impeded . | . . . . . Haulers Reinforced . | . . . . . Active Scanning Responses . | . . . . . Cargo Convoy Interrupts . | . . . . . Stealth | -11 -10 -9 -9 -9 --------- Run | Yrd Mat Mat Sto Gar Distress Signals 5 | . 1 2 2 . Communications Jammed . | . . . . . Distress Signals . | . . . . . Times Spotted 52 | . 7 24 7 14 Peak Tracking Total 14 | . 4 10 4 14 Tactical Retreats 6 | . 1 2 2 1 Traps | -11 -10 -9 -9 -9 ------- Run | Yrd Mat Mat Sto Gar Traps Triggered 2 | . . . 1 1 Indirectly . | . . . . . Trap Hack Attempts . | . . . . . Triggered . | . . . . . Disarmed . | . . . . . Reprogrammed . | . . . . . Reused . | . . . . . Traps Extracted . | . . . . . Installed . | . . . . . Triggered . | . . . . . Machines | -11 -10 -9 -9 -9 ---------- Run | Yrd Mat Mat Sto Gar Machines Disabled 2 | . . . 2 . Max in Single Turn 1 | . . . 1 . Machines Repaired . | . . . . . Machines Dismantled . | . . . . . Machines Sabotaged . | . . . . . Overloaded Fab Kills . | . . . . . Hacking | -11 -10 -9 -9 -9 --------- Run | Yrd Mat Mat Sto Gar Machines Accessed 2 | . 1 . 1 . Terminals 1 | . 1 . . . Fabricators . | . . . . . Repair Stations . | . . . . . Recycling Units . | . . . . . Scanalyzers . | . . . . . Garrison Access 1 | . . . 1 . Total Hacks 4 | . 2 . 2 . Successful 2 | . 1 . 1 . Failed 2 | . 1 . 1 . Catastrophic . | . . . . . Database Lockouts . | . . . . . Manual . | . . . . . Terminals 2 | . 2 . . . Fabricators . | . . . . . Repair Stations . | . . . . . Recycling Units . | . . . . . Scanalyzers . | . . . . . Garrison Access 2 | . . . 2 . Terminal Hacks 1 | . 1 . . . Zone Layout 1 | . 1 . . . Fabricator Hacks . | . . . . . Repair Station Hacks . | . . . . . Recycling Unit Hacks . | . . . . . Scanalyzer . | . . . . . Garrison Access Hacks 1 | . . . 1 . Unlock Access 1 | . . . 1 . Unauthorized Hacks . | . . . . . Terminals . | . . . . . Fabricators . | . . . . . Repair Stations . | . . . . . Recycling Units . | . . . . . Scanalyzers . | . . . . . Garrison Access . | . . . . . Data Cores Recovered . | . . . . . Used . | . . . . . Hacking Detections 2 | . 1 . 1 . Full Trace Events . | . . . . . Feedback Events . | . . . . . Feedback Blocked . | . . . . . Robot Schematics Acquired . | . . . . . Robots Built . | . . . . . Authchips . | . . . . . Time . | . . . . . Total Robot Build Rating . | . . . . . Part Schematics Acquired . | . . . . . Parts Built . | . . . . . Authchips . | . . . . . Time . | . . . . . Total Part Build Rating . | . . . . . Parts Repaired . | . . . . . Time . | . . . . . Parts Recycled . | . . . . . Recycled Matter . | . . . . . Retrieved Matter . | . . . . . Retrieved Components . | . . . . . Parts Scanalyzed . | . . . . . Part Schematics Acquired . | . . . . . Parts Damaged . | . . . . . Bothacking | -11 -10 -9 -9 -9 ------------ Run | Yrd Mat Mat Sto Gar Used RIF Installer . | . . . . . Robots Hacked . | . . . . . Non-combat . | . . . . . Combat . | . . . . . Robot Hacks Applied . | . . . . . Relay Couplers Released . | . . . . . Fabnet Peak Effective % . | . . . . . Robots Rewired . | . . . . . Allies Hacked . | . . . . . Hacks Repelled . | . . . . . Allies | -11 -10 -9 -9 -9 -------- Run | Yrd Mat Mat Sto Gar Total Allies . | . . . . . Largest Group . | . . . . . Highest-Rated Group . | . . . . . Highest-Rated Ally . | . . . . . Total Orders . | . . . . . Ally Attacks . | . . . . . Total Damage . | . . . . . Kills . | . . . . . Allies Corrupted . | . . . . . Allies Melted . | . . . . . Intel | -11 -10 -9 -9 -9 ------- Run | Yrd Mat Mat Sto Gar Robot Analysis Total . | . . . . . Derelict Logs Recovered . | . . . . . Drone Launches . | . . . . . Drone Recoveries . | . . . . . Exploration | -11 -10 -9 -9 -9 ------------- Run | Yrd Mat Mat Sto Gar Turns Passed 2043 | 175 353 516 670 329 Spaces Moved 803 | 91 169 210 262 71 Core 23 | 21 . 2 . . Treads 106 | 70 36 . . . Legs . | . . . . . Wheels 674 | . 133 208 262 71 Hover . | . . . . . Flight . | . . . . . Fastest Speed 50 | 50 130 130 130 130 Average Speed 141 | 134 142 145 141 134 Slowest Speed 1550 | 160 160 1550 145 145 Overloaded Moves . | . . . . . Propulsion Burnouts . | . . . . . Robots Hopped . | . . . . . Cave-ins Triggered . | . . . . . Exploration Rate (%) 19 | 5 29 18 29 18 Regions Visited 4 Branch Regions 1 Pre-discovered Areas . | . . . . . Known Exits Taken 1 | . . . 1 . Unknown Exits Taken 3 | 1 1 1 . . Scrap Searched . | . . . . . Spaces Dug . | . . . . . Terrain Destroyed 1 | . . . 1 . Melee . | . . . . . Projectile 1 | . . . 1 . AOE . | . . . . . Terrain Rammed . | . . . . . Walls Destroyed . | . . . . . Machines Disabled . | . . . . . Actions | -11 -10 -9 -9 -9 --------- Run | Yrd Mat Mat Sto Gar Total 1371 | 114 228 319 525 185 Wait 301 | . 21 26 216 38 Move 799 | 90 168 209 261 71 Hop . | . . . . . Pick Up 32 | 4 2 9 13 4 Fast Attach 16 | 7 . 9 . . Attach 5 | . 1 2 2 . Detach 2 | . . . 2 . Swap 17 | . 5 4 5 3 Drop 14 | . 3 4 7 . Fire 176 | 13 28 56 19 60 Melee . | . . . . . Ram 1 | . . . . 1 Kick . | . . . . . Crush . | . . . . . Escape Stasis . | . . . . . Rewire 8 | . . . . 8 Trap . | . . . . . Miscellaneous . | . . . . . Route ------- -11/Scrapyard -10/Materials -9/Materials (discovered 2 exits: [*Min] / *Sto) -9/Storage -9/Garrison History --------- Turn | Location | Event 3 | -11/Scrapyard | Discovered new exit (range 15) 176 | -11/Scrapyard | Entered Materials 316 | -10/Materials | Build established: Mutant 393 | -10/Materials | Discovered new exit (range 3) 529 | -10/Materials | Entered another Materials area 529 | -9/Materials | Evolved 2 slots: Utility x2 682 | -9/Materials | Lost 5 parts (1p2n2w) 911 | -9/Materials | Core integrity fell below 50% 959 | -9/Materials | Lost 3 parts (1u2w) 973 | -9/Materials | Build established: Scavenger-Mutant 974 | -9/Materials | Discovered new exit (range 13) 991 | -9/Materials | Discovered new exit (range 16) 1045 | -9/Materials | Entered Storage 1432 | -9/Storage | Build established: Mutant 1659 | -9/Storage | Garrison activated, responded to threat 1714 | -9/Storage | Identified exit to Garrison 1715 | -9/Storage | Entered Garrison 2010 | -9/Garrison | Spotted B-75 Beast 2017 | -9/Garrison | Core integrity fell below 20% 2037 | -9/Garrison | Triggered checkpoint 2044 | -9/Garrison | Destroyed by S-10 Pest with Light Assault Rifle Last Messages --------------- 01910_ Acquired 4 matter. 01924_ C-30 ARC destroyed. 01925_ Acquired 4 matter. 01937_ Attempting to rewire C-30 ARC. 01937_ C-30 ARC is unpowered. 01938_ Attempting to rewire C-30 ARC. 01938_ C-30 ARC is unpowered. 01951_ Acquired 4 matter. 01956_ C-30 ARC suffers critical hit (Blast). 01957_ Acquired 4 matter. 01983_ C-30 ARC destroyed. 01984_ Acquired 4 matter. 02008_ Triggered Alarm Trap. 02008_ An alarm sounds. 02012_ Seismic Detector destroyed. 02017_ Slammed into S-10 Pest. 02017_ S-10 Pest destroyed. 02017_ Destabilizing: Core damaged (-16). 02030_ S-10 Pest knocked back. 02040_ Imp. Light Cannon destroyed. Map ----- +----------------------------------------------------+ | ?????????????????????????????????????????????????? | | ?????????????????????????????????????????????????? | | ?????????????????????????????????????????????????? | | ?????????????????????????????????????????????????? | | ?????????????????????????????????????????????????? | | ?????????????????????????????????????????????????? | | ?????????????????????????????????????????????????? | | ?????????????????????????????????????????????????? | | ?????????????????????????????????????????????????? | | ?????????????????????????????????????????????????? | | ?????????????????????????????????????????????????? | | ?????????????????##+#?#""""#?????????????????????? | | ????????????????? ? ????????????????????? | | ????????????????? ? ?? ?????????????????? | | ????????????????? g ? ?? ????????????????? | | ?????????????????# ?# #? #????????????????? | | ?????????????????# ## ## #????????????????? | | ?????????????????" "????????????????? | | ?????????????????" ??????????????????? | | ?????????????????" ??"????????????????? | | ?????????????????" ?? "????????????????? | | ?????????????????# ## #?? #????????????????? | | ?????????????????# ss## ## ########?????????? | | ?????????????????# ????????? | | ?????????????????# ss ?????????? | | ?????????????????# ss @ #????????????????? | | ?????????????????## ## s######????????????????? | | ??????????????????# ## #?????????????????????? | | ??????????????????# #######?????????????????????? | | ??????????????????# #???????????????????????????? | | ????????###???????# +???????????????????????????? | | ???????? #???????# #???????????????????????????? | | ????????# #???????# #???????????????????????????? | | ????????# #???????# #???????????????????????????? | | ????????#^#???????# #???????????????????????????? | | ????##### ######### #???????????????????????????? | | + + =% #???????????????????????????? | | + + #???????????????????????????? | | ## ### #############???????????????????????????? | | ?????# #???????????????????????????????????????? | | ?????# #???????????????????????????????????????? | | ?????# #???????????????????????????????????????? | | ?????# #???????????????????????????????????????? | | ?????# #???????????????????????????????????????? | | ?????# #???????????????????????????????????????? | | ?????# %#???????????????????????????????????????? | | ????## ##??????????????????????????????????????? | | ????# %#??????????????????????????????????????? | | ????#% %%%#??????????????????????????????????????? | | ????# %% #??????????????????????????????????????? | +----------------------------------------------------+ Best States ------------- Heat Dissipation 28 Energy Generation 14 Energy Capacity 280 Matter Stores 300 Matter Capacity 300 Sight Range 16 Terrain Scan Density 10 Armor Coverage 150 Evasion (%) 50 Recoil Reduction 2 Item Schematics ----------------- None Robot Schematics ------------------ None Fabricated ------------ Nothing Alien Tech Used ----------------- None Achievements -------------- None Challenges ------------ None Game ------ Seed CobblerRemoteBlaster Manual? 0 Play Time 00:13:34 Cumulative 57.1 hours Start 2025.04.28 @ 01:00:50 End 2025.04.28 @ 01:12:11 Sessions 1 Manual Loads 0 Difficulty Rogue Special Mode None Game No. 168 Rogue 168 Adventurer 0 Explorer 0 Win Type - Total 0 Types 0/0/0/0/0/0/0/0/0 Lore% 16 Gallery% 40 Achievement% 32 Wizard Run 0 Options --------- Layout 0 ASCII 0 Keyboard 0 Movement Numpad Keybinds 0 Fullscreen 2 Font 18/Terminus Map View 76x50 Zoom Use 0% Tactical HUD 1 Map Filters NONE Filters NONE Steam 1 RUN: 9b9f7729-b06b-4e71-b789-16f8d9b91b9d